Cogmind - Beta 16 @@@ ROGUE MODE // 2025.10.24 @ 12:31:16 Player: Minty Result: Destroyed by as-12765 with Assembled Rifle Performance ------------- Evolutions (1) 500 Regions Visited (4) 800 Robots Destroyed (43) 215 Value Destroyed (879) 879 Prototype IDs (7) 140 Alien Tech Used (0) 0 Bonus (-42) -42 TOTAL SCORE: 2492 Bonus ------- Friendly Fire -42 Cogmind --------- Core Integrity 0/400 Matter 136/300 Energy 94/100 System Corruption 8% Temperature Cool (0) Movement Core (200) Ox3 Location -9/Mines Parts ------- > --- POWER (1) -------- (None) > --- PROPULSION (4) --- (None) > --- UTILITY (2) ------ Heat Sink Medium Storage Unit > --- WEAPON (2) ------- Mini Grenade Launcher > --- INVENTORY (10) --- Small Storage Unit Weight Redist. System Hacking Suite Improved Trap Extractor (1/6 Explosive) Improved Medium Laser Improved Medium Laser Improved Medium Laser Improved Medium Laser Peak State ------------ > --- POWER ------------ Light Deuterium Engine > --- PROPULSION ------- Hover Unit Hover Unit Hover Unit Hover Unit > --- UTILITY ---------- Medium Storage Unit Weight Redist. System > --- WEAPON ----------- Improved EM Shotgun Improved Medium Laser > --- INVENTORY -------- Hover Unit Small Storage Unit Hacking Suite Tractor Beam Improved Trap Extractor Rocket Launcher Mini Grenade Launcher Mini Grenade Launcher Datajack [Rating: 17] Favorites ----------- Power Ion Engine Engine Ion Engine Power Core Light Nuclear Core Propulsion Hover Unit Leg Aluminum Leg Hover Unit Hover Unit Utility Small Storage Unit Device Weight Redist. System Storage Small Storage Unit Weapon Assault Rifle Energy Gun Improved Medium Laser Ballistic Gun Assault Rifle Launcher Mini Grenade Launcher Special Melee Weapon Datajack Build | -11 -10 -10 -9 -9 ------- Run | Yrd Mat Min Mat Min Slots Evolved 2 | . . . 2 . Power . | . . . . . Propulsion 2 | . . . 2 . Utility . | . . . . . Weapon . | . . . . . Parts Attached 32 | . 16 3 11 2 Power 5 | . 3 1 1 . Engine 4 | . 2 1 1 . Core 1 | . 1 . . . Reactor . | . . . . . Propulsion 10 | . 6 . 4 . Treads . | . . . . . Leg 4 | . 4 . . . Wheel . | . . . . . Hover 6 | . 2 . 4 . Flight . | . . . . . Utility 6 | . 3 1 2 . Device 4 | . 1 1 2 . Storage 2 | . 2 . . . Processor . | . . . . . Hackware . | . . . . . Protection . | . . . . . Artifact . | . . . . . Weapon 11 | . 4 1 4 2 Energy Gun 3 | . . . 3 . Energy Cannon . | . . . . . Ballistic Gun 4 | . 4 . . . Ballistic Cannon . | . . . . . Launcher 3 | . . . 1 2 Special Weapon . | . . . . . Impact Weapon . | . . . . . Slashing Weapon . | . . . . . Piercing Weapon . | . . . . . Special Melee Weapon 1 | . . 1 . . Unidentified Prototypes 1 | . . . 1 . Parts Lost 11 | . 1 . 3 7 Power 2 | . 1 . . 1 Propulsion 6 | . . . 3 3 Utility . | . . . . . Weapon 3 | . . . . 3 Highest Loss Streak 7 | . 1 . 2 7 To Critical Strikes . | . . . . . Average Backups 8 | . 7 8 9 9 Power . | . . . . . Propulsion 1 | . 2 3 . . Utility 3 | . 1 3 5 4 Weapon 1 | . 1 . 2 5 Tool/Special . | . . . . . Unused Backups 12 | . 6 1 1 4 Power 1 | . 1 . . . Propulsion 4 | . 4 . . . Utility 2 | . . . 1 1 Weapon 4 | . . 1 . 3 Tool/Special 1 | . 1 . . . Average Slot Usage (%) 94 | . 95 100 94 69 Engine 12 | . 12 14 11 7 Leg 3 | . 6 . . . Hover 27 | . 21 28 40 18 Device 10 | . 10 14 9 11 Storage 12 | . 14 14 11 11 Energy Gun 5 | . . . 18 12 Ballistic Gun 19 | . 28 27 3 . Peak Build Rating 17 | . 10 11 17 17 Average Rating 10 | . 7 10 15 12 On Entrance 9 | 6 6 9 11 17 Avg Prop Armor Cover (%) . | . . . . . Naked Turns . | . . . . . Heaviest Build 24 | 14 14 19 24 24 Greatest Support 30 | 20 20 18 30 24 Greatest Overweight (x) 4 | . 4 1 1 . Average Overweight (x) . | . . . . . Largest Inventory Capacity 10 | . 10 10 10 10 Average Capacity 8 | . 8 8 10 10 Most Carried 10 | . 8 9 10 10 Average Carried 8 | . 7 8 9 9 Final Capacity 10 | 8 8 10 10 10 Final Carried 10 | 6 8 9 10 8 Class Distribution -------------------- 100% | Mutant Dominant Class ---------------- Mutant | -10/Materials Mutant | -10/Mines Mutant | -9/Materials Mutant | -9/Mines Resources | -11 -10 -10 -9 -9 ----------- Run | Yrd Mat Min Mat Min Matter Collected 1037 | 200 503 23 311 . Remotely . | . . . . . Salvage Created 1533 | . 599 23 794 117 Parts 86 | . 38 3 43 2 Haulers Intercepted 6 | . 2 . 4 . Recyclers Shooed 1 | . . . 1 . Parts Field Recycled . | . . . . . Retrieved Matter . | . . . . . Parts Self-Destructed . | . . . . . Prevented . | . . . . . Parts Restored . | . . . . . Kills | -11 -10 -10 -9 -9 ------- Run | Yrd Mat Min Mat Min Combat Hostiles Destroyed 44 | . 11 . 13 20 Guns 23 | . 11 . 11 1 AOE 20 | . . . 2 18 Classes Destroyed 12 | . 6 1 4 1 Worker 3 | . 2 . 1 . Builder 1 | . . . 1 . Tunneler 1 | . . 1 . . Hauler 6 | . 2 . 4 . Recycler 1 | . . . 1 . Operator 2 | . 2 . . . Watcher 3 | . 2 . 1 . Swarmer 8 | . 3 . 5 . Grunt 12 | . 8 . 3 1 Brawler 2 | . . . 1 1 Sentry 4 | . . . 4 . Assembled 18 | . . . . 18 Best Kill Streak 20 | . 5 1 5 20 Combat Bots Only 20 | . 5 . 4 20 Max Kills in Single Turn 4 | . 2 1 3 4 Gunslinging 1 | . . . 1 . Exploded 4 | . . . 2 4 Melee . | . . . . . Uniques/NPCs Destroyed . | . . . . . Combat | -11 -10 -10 -9 -9 -------- Run | Yrd Mat Min Mat Min Hostile Shots Fired 154 | . 47 . 60 47 Missed 51 | . 18 . 21 12 Hits 103 | . 29 . 39 35 Melee 7 | . . . 1 6 Projectile 96 | . 29 . 38 29 Critical Strikes 1 | . . . 1 . Damage Taken 1712 | . 349 30 415 918 Core 487 | . 46 30 70 341 Absorbed by Shields . | . . . . . Regen/Repaired (Parts) 70 | . 18 . 52 . Core Remaining (%) 84 | 100 . 69 . . Volleys Fired 122 | . 53 1 48 20 Largest 2 | . 2 2 2 2 Hottest 112 | . 40 40 112 112 Shots Fired 235 | . 106 2 97 30 Gun 219 | . 106 2 96 15 Cannon . | . . . . . Launcher 16 | . . . 1 15 Special . | . . . . . Kinetic 134 | . 106 2 26 . Thermal 85 | . . . 70 15 Explosive 16 | . . . 1 15 Electromagnetic . | . . . . . Robot Hit Streak 14 | . 8 3 14 4 Robot Miss Streak 5 | . 5 . 4 4 Penetration Max . | . . . . . Secondary Targets 4 | . . . 4 . Max Gunslinging Chain 1 | . . . 1 . Shots Hit Robots 139 | . 61 2 63 13 Core Hits 98 | . 31 1 29 37 Critical Kills . | . . . . . Critical Parts Destroyed . | . . . . . Critical Strikes 6 | . . . 5 1 Burn 6 | . . . 5 1 Melee Attacks . | . . . . . Impact . | . . . . . Slashing . | . . . . . Piercing . | . . . . . Sneak Attacks . | . . . . . Combat Hostiles . | . . . . . Follow-up Attacks . | . . . . . Damage Inflicted 3347 | . 800 27 1197 1323 Guns 2000 | . 800 27 1020 153 Cannons . | . . . . . Explosions 1347 | . . . 177 1170 Melee . | . . . . . Ramming . | . . . . . Kinetic 1053 | . 800 27 226 . Thermal 947 | . . . 794 153 Explosive 1347 | . . . 177 1170 Electromagnetic . | . . . . . Impact . | . . . . . Slashing . | . . . . . Piercing . | . . . . . Highest Corruption 8 | . . . 5 8 Average Corruption 5 | . . . 5 5 Corruption Purged . | . . . . . Corruption Blocked . | . . . . . Effects 13 | . . . 10 3 Message Errors 3 | . . . 2 1 Matter Fused 1 | . . . 1 . Heat Flow Errors 1 | . . . 1 . Energy Discharges 3 | . . . 2 1 Parts Rejected 1 | . . . 1 . Data Loss (minor) 1 | . . . 1 . Misfires 2 | . . . 2 . Weapon Failures 1 | . . . . 1 Overload Shots . | . . . . . Overflow Damage 103 | . . . . 103 Projectiles . | . . . . . Explosions 103 | . . . . 103 Melee . | . . . . . Knockbacks . | . . . . . Impact . | . . . . . Kinetic . | . . . . . Secondary . | . . . . . Self-Inflicted Damage 273 | . . . . 273 Shots 7 | . . . . 7 Rammed . | . . . . . Targets Rammed . | . . . . . Kicked . | . . . . . Crushed . | . . . . . Highest Temperature 308 | . 10 . 308 279 Average Temperature 110 | . 3 . 112 148 Received Heat Transfer 402 | . 177 . 111 114 Effects 3 | . . . 2 1 Energy Bleed 2 | . . . 2 . Interference 1 | . . . . 1 Siege Activations . | . . . . . Martial Activations . | . . . . . Shielding Activations . | . . . . . Robots Disrupted . | . . . . . Combat Hostiles . | . . . . . Robots Corrupted . | . . . . . Combat Hostiles . | . . . . . Parts Fried . | . . . . . Impact Corruptions . | . . . . . Robots Melted 1 | . . . . 1 Combat Hostiles 1 | . . . . 1 Parts Melted 11 | . . . 9 2 Heat Transferred 2516 | . . . 2109 407 Parts Sabotaged . | . . . . . Parts Stolen . | . . . . . Parts Stripped . | . . . . . Power Chain Reactions . | . . . . . Alert | -11 -10 -10 -9 -9 ------- Run | Yrd Mat Min Mat Min Maximum Alert Level 1 | . 1 . 1 . Low Security (%) 91 | . 99 100 72 100 Level 1 8 | . . . 27 . Level 2 . | . . . . . Level 3 . | . . . . . Level 4 . | . . . . . Level 5 . | . . . . . High Security . | . . . . . Max Security . | . . . . . Peak Influence 242 | . 205 41 242 117 Initial 86 | . . 41 . 86 Average 83 | . 73 15 123 96 Influence Increases 888 | . 369 5 424 90 Destroy 0b10 Robot/C 520 | . 220 . 260 40 Destroy 0b10 Robot/NC 85 | . 40 5 40 . Destroy Leader 148 | . 68 . 70 10 Successful Hack 36 | . 23 . 13 . Destroy Structure 54 | . 3 . 11 40 Lose Combat Pursuer 45 | . 15 . 30 . Influence Decreases 802 | . 262 112 201 227 Entered New Map 203 | . . 66 . 137 Time Decay 503 | . 252 46 185 20 Lost Part 96 | . 10 . 16 70 Squads Dispatched 5 | . 4 . 1 . Investigation 2 | . 1 . 1 . Extermination . | . . . . . Reinforcement 3 | . 3 . . . Assault . | . . . . . Garrison . | . . . . . Intercept . | . . . . . Searches Triggered . | . . . . . Construction Impeded . | . . . . . Haulers Reinforced . | . . . . . Active Scanning Responses . | . . . . . Cargo Convoy Interrupts . | . . . . . Stealth | -11 -10 -10 -9 -9 --------- Run | Yrd Mat Min Mat Min Distress Signals 1 | . 1 . . . Communications Jammed . | . . . . . Distress Signals . | . . . . . Times Spotted 64 | . 20 . 23 21 Peak Tracking Total 18 | . 4 . 7 18 Tactical Retreats 3 | . 1 . 2 . Traps | -11 -10 -10 -9 -9 ------- Run | Yrd Mat Min Mat Min Traps Triggered 4 | . 3 1 . . Indirectly . | . . . . . Trap Hack Attempts 8 | . . 8 . . Triggered . | . . . . . Disarmed . | . . . . . Reprogrammed 1 | . . 1 . . Reused . | . . . . . Traps Extracted 1 | . . 1 . . Installed . | . . . . . Triggered . | . . . . . Most Traps Carried 1 | . . 1 1 1 Machines | -11 -10 -10 -9 -9 ---------- Run | Yrd Mat Min Mat Min Machines Disabled . | . . . . . Max in Single Turn . | . . . . . Machines Repaired . | . . . . . Machines Dismantled . | . . . . . Machines Sabotaged . | . . . . . Overloaded Fab Kills . | . . . . . Hacking | -11 -10 -10 -9 -9 --------- Run | Yrd Mat Min Mat Min Machines Accessed 11 | . 7 1 3 . Terminals 8 | . 6 . 2 . Fabricators . | . . . . . Repair Stations 2 | . 1 . 1 . Recycling Units . | . . . . . Scanalyzers . | . . . . . Garrison Access . | . . . . . Total Hacks 42 | . 28 1 13 . Successful 30 | . 20 1 9 . Failed 11 | . 7 . 4 . Catastrophic 1 | . 1 . . . Database Lockouts 1 | . 1 . . . Manual 25 | . 19 . 6 . Terminals 35 | . 27 . 8 . Fabricators . | . . . . . Repair Stations 6 | . 1 . 5 . Recycling Units . | . . . . . Scanalyzers . | . . . . . Garrison Access . | . . . . . Terminal Hacks 14 | . 9 1 4 . Robot Analysis 1 | . 1 . . . Prototype ID Bank 3 | . 2 . 1 . Open Door 1 | . . 1 . . Branch Access Points 1 | . 1 . . . Terminal Index 1 | . 1 . . . Alert Level 3 | . 2 . 1 . Transport Status 1 | . . . 1 . Hauler Manifests 1 | . . . 1 . Zone Layout 2 | . 2 . . . Fabricator Hacks . | . . . . . Repair Station Hacks 3 | . . . 3 . Scan Component 2 | . . . 2 . Repair 1 | . . . 1 . Recycling Unit Hacks . | . . . . . Scanalyzer . | . . . . . Garrison Access Hacks . | . . . . . Unauthorized Hacks 13 | . 11 . 2 . Terminals 11 | . 10 . 1 . Botnet 5 | . 4 . 1 . Skim 6 | . 6 . . . Fabricators . | . . . . . Repair Stations 2 | . 1 . 1 . Patch 2 | . 1 . 1 . Recycling Units . | . . . . . Scanalyzers . | . . . . . Garrison Access . | . . . . . Data Cores Recovered . | . . . . . Used . | . . . . . Hacking Detections 9 | . 6 . 3 . Full Trace Events . | . . . . . Feedback Events . | . . . . . Feedback Blocked . | . . . . . Robot Schematics Acquired . | . . . . . Robots Built . | . . . . . Authchips . | . . . . . Time . | . . . . . Total Robot Build Rating . | . . . . . Part Schematics Acquired . | . . . . . Parts Built . | . . . . . Authchips . | . . . . . Time . | . . . . . Total Part Build Rating . | . . . . . Part Studies Acquired . | . . . . . Parts Repaired 1 | . . . 1 . Time 36 | . . . 36 . Parts Recycled . | . . . . . Recycled Matter . | . . . . . Retrieved Matter . | . . . . . Retrieved Components . | . . . . . Parts Scanalyzed . | . . . . . Part Schematics Acquired . | . . . . . Parts Damaged . | . . . . . Bothacking | -11 -10 -10 -9 -9 ------------ Run | Yrd Mat Min Mat Min Used RIF Installer . | . . . . . Robots Hacked . | . . . . . Non-combat . | . . . . . Combat . | . . . . . Robot Hacks Applied . | . . . . . Relay Couplers Released . | . . . . . Fabnet Peak Effective % . | . . . . . Robots Rewired . | . . . . . Allies Hacked . | . . . . . Hacks Repelled . | . . . . . Allies | -11 -10 -10 -9 -9 -------- Run | Yrd Mat Min Mat Min Total Allies . | . . . . . Largest Group . | . . . . . Highest-Rated Group . | . . . . . Highest-Rated Ally . | . . . . . Total Orders . | . . . . . Ally Attacks . | . . . . . Total Damage . | . . . . . Kills . | . . . . . Allies Corrupted . | . . . . . Allies Melted . | . . . . . Intel | -11 -10 -10 -9 -9 ------- Run | Yrd Mat Min Mat Min Active Infowar (turns) 3 | . . . 3 . Structural 3 | . . . 3 . Robot Analysis Total 1 | . 1 . . . Derelict Logs Recovered 1 | . . 1 . . Drone Launches . | . . . . . Drone Recoveries . | . . . . . Exploration | -11 -10 -10 -9 -9 ------------- Run | Yrd Mat Min Mat Min Turns Passed 1451 | . 835 133 426 57 Spaces Moved 1247 | 1 626 182 436 2 Core 1 | . 1 . . . Treads . | . . . . . Legs 132 | 1 131 . . . Wheels . | . . . . . Hover 1114 | . 494 182 436 2 Flight . | . . . . . Fastest Speed 48 | 120 56 56 48 52 Average Speed 61 | 120 71 60 49 52 Slowest Speed 250 | 120 250 116 112 52 Overloaded Moves . | . . . . . Propulsion Burnouts . | . . . . . Robots Hopped . | . . . . . Potential Cave-ins . | . . . . . Cave-ins Triggered 1 | . . . . 1 Exploration Rate (%) 30 | 2 80 35 33 4 Regions Visited 4 Branch Regions 2 Pre-discovered Areas . | . . . . . Known Exits Taken 3 | . 1 1 1 . Unknown Exits Taken 1 | 1 . . . . Scrap Searched . | . . . . . Spaces Dug 23 | . . . . 23 Terrain Destroyed 123 | . . . 10 113 Melee . | . . . . . Projectile . | . . . . . AOE 123 | . . . 10 113 Terrain Rammed . | . . . . . Walls Destroyed . | . . . . . Machines Disabled . | . . . . . Actions | -11 -10 -10 -9 -9 --------- Run | Yrd Mat Min Mat Min Total 1686 | . 911 202 547 26 Wait 229 | . 193 . 36 . Move 1243 | . 625 181 435 2 Hop . | . . . . . Pick Up 17 | . 9 2 6 . Fast Attach 14 | . 9 1 4 . Attach 7 | . 1 . 4 2 Detach 3 | . . 1 2 . Swap 25 | . 9 5 9 2 Drop 18 | . 12 3 3 . Fire 122 | . 53 1 48 20 Melee . | . . . . . Ram . | . . . . . Kick . | . . . . . Crush . | . . . . . Escape Stasis . | . . . . . Rewire . | . . . . . Trap 8 | . . 8 . . Miscellaneous . | . . . . . Route ------- -11/Scrapyard -10/Materials (discovered 5 exits: *Mat x3 / *Min / Sub) -10/Mines (discovered 2 exits: *Mat x2) -9/Materials (discovered 3 exits: Mat / *Min x2) -9/Mines History --------- Turn | Location | Event 1 | -11/Scrapyard | Discovered new exit (range 0) 1 | -11/Scrapyard | Entered Materials 36 | -10/Materials | Central database locked down 165 | -10/Materials | Discovered new exit (range 9) 232 | -10/Materials | Identified exit to Mines 286 | -10/Materials | Discovered new exit (range 3) 318 | -10/Materials | Build established: Mutant 473 | -10/Materials | Discovered new exit (range 3) 555 | -10/Materials | Loaded intel: 6 trap records 609 | -10/Materials | Learned 4 Recycling zone layouts 653 | -10/Materials | Learned 2 Mines zone layouts 687 | -10/Materials | Identified exit to Subcaves 836 | -10/Materials | Entered Mines 837 | -10/Mines | Identified exit to Materials 840 | -10/Mines | Met a Derelict who couldn't figure out how to use a Trap Extractor 917 | -10/Mines | Learned 8 Materials zone layouts 951 | -10/Mines | Received a Rocket Launcher from a helpful Derelict 969 | -10/Mines | Entered Materials 969 | -9/Materials | Evolved 2 slots: Propulsion x2 970 | -9/Materials | Identified exit to Mines 971 | -9/Materials | Identified exit to Materials 1238 | -9/Materials | Repaired Broken Hover Unit 1395 | -9/Materials | Entered Mines 1396 | -9/Mines | Assembled infested the area 1437 | -9/Mines | Crushed by falling debris 1437 | -9/Mines | Core integrity fell below 50% 1447 | -9/Mines | Core integrity fell below 20% 1452 | -9/Mines | Destroyed by as-12765 with Assembled Rifle Last Messages --------------- 01439_ as-31258 destroyed. 01439_ as-52542 destroyed. 01440_ Knocked back. 01441_ The unstable cave ceiling collapses. 01442_ as-98113 destroyed. 01444_ System corrupted: Energy discharge (-38). 01445_ The unstable cave ceiling collapses. 01445_ Destroyed Asb. F-torch. 01445_ as-18534 destroyed. 01445_ as-51941 destroyed. 01445_ as-85779 destroyed. 01448_ Destroyed Asb. Hover Unit. 01448_ as-46979 destroyed. 01448_ Destroyed Asb. F-torch. 01448_ Destroyed Asb. Hover Unit. 01448_ as-40304 destroyed. 01448_ as-75957 destroyed. 01450_ The unstable cave ceiling collapses. 01450_ Rocket Launcher destroyed. 01451_ The unstable cave ceiling collapses. Map ----- +----------------------------------------------------+ | | | | | | | | | | | | | | | | | | | | | | | | | | | | | | | | | | | | | | | | | | | | | | | ??????????????????????## ##????????????????? | | ??????????????????????# ##???????????????? | | ??????????????????????# @ #???????????????? | | ??????????????????????# # #???????????????? | | ?????????????????????# #?????????????? | | ?????????????????????## #??????????? | | ??????????????????????# ##??????????? | | ??????????????????????## #??????????? | | ???????????????????????# ##??????????? | | ???????????????????????# #??????????? | | ???????????????????????### ## ??????????? | | ??????????????????????????## a #??????????? | | ????????????????????????????# % ??????????? | | ?????????????????????????????# ## %%???????????? | | ??????????????????????????????###? ??????????? | | ?????????????????????????????????????????????????? | | ?????????????????????????????????????????????????? | | ?????????????????????????????????????????????????? | | ?????????????????????????????????????????????????? | | ?????????????????????????????????????????????????? | | ?????????????????????????????????????????????????? | | ?????????????????????????????????????????????????? | | ?????????????????????????????????????????????????? | | ?????????????????????????????????????????????????? | | ?????????????????????????????????????????????????? | | ?????????????????????????????????????????????????? | | ?????????????????????????????????????????????????? | +----------------------------------------------------+ Best States ------------- Heat Dissipation 38 Energy Generation 14 Energy Capacity 280 Matter Stores 300 Matter Capacity 300 Sight Range 16 Terrain Scan Density 10 Additional Mass Support 6 Evasion (%) 55 Item Schematics ----------------- None Robot Schematics ------------------ None Fabricated ------------ Nothing Repaired ---------- Hover Unit | 13% | -9/Materials | Broken Studied --------- None Alien Tech Used ----------------- None Achievements -------------- None Challenges ------------ None Game ------ Seed ProtonGreatReconfigurator Manual? 0 Play Time 00:11:49 Cumulative 1206.5 hours Start 2025.10.24 @ 12:19:50 End 2025.10.24 @ 12:31:16 Sessions 1 Manual Loads 0 Difficulty Rogue Special Mode None Game No. 1484 Rogue 1200 Adventurer 124 Explorer 160 Win Type - Total 56 Types 42/0/8/4/1/0/0/1/0/0 Lore% 92 Gallery% 86 Achievement% 62 Wizard Run 0 Options --------- Layout 0 ASCII 0 Keyboard 1 Movement Numpad Keybinds 0 Fullscreen 2 Font 18/X11 Map View 76x50 Zoom Use 0% Tactical HUD 1 Map Filters NONE Filters NONE Steam 1 RUN: 676f20f1-0826-4c9f-a78b-4981d63725d9